bitfinex/quotes_SOLUSD_20230102
["timestamp","ask_amount","ask_price","bid_price","bid_amount"]
[1672650253944,67.34,11.155,11.148,114.1538]
[1672650254697,67.33,11.157,11.148,114.1538]
[1672650255011,67.32,11.159,11.149,30.0]
[1672650255207,67.32,11.159,11.149,114.1538]
[1672650255623,67.32,11.159,11.15,30.0]
[1672650255836,67.3,11.162,11.15,39.08]
[1672650256049,30.0,11.161,11.151,112.1242]
[1672650256270,67.31,11.16,11.146,30.0]
[1672650256476,111.5618,11.163,11.147,39.35]
[1672650256687,97.3,11.162,11.148,112.1242]
[1672650257009,30.0,11.161,11.148,112.1242]
[1672650257226,67.31,11.16,11.149,112.1242]
[1672650257632,30.0,11.159,11.149,112.1242]
[1672650257843,67.33,11.158,11.149,112.1242]
[1672650258275,67.31,11.16,11.149,112.1242]
[1672650258593,67.31,11.16,11.15,112.1242]
[1672650258993,30.0,11.159,11.15,112.1242]
[1672650259209,67.33,11.158,11.14,9.22]
[1672650259533,30.0,11.157,11.141,113.1274]
[1672650259728,30.0,11.155,11.142,113.1274]
[1672650259940,67.35,11.154,11.133,30.0]
[1672650260164,30.0,11.153,11.134,38.94]
[1672650260483,184.3369,11.154,11.134,38.94]
[1672650260697,116.9869,11.152,11.14,9.18]
[1672650261005,67.35,11.154,11.142,30.0]
[1672650261195,184.3269,11.156,11.143,39.0]
[1672650261406,67.34,11.156,11.144,30.0]
[1672650261616,30.0,11.157,11.144,30.0]
[1672650261842,67.34,11.156,11.143,39.0]
[1672650262064,30.0,11.155,11.143,39.0]
[1672650262370,67.35,11.154,11.143,39.0]
[1672650262769,67.33,11.157,11.144,30.0]
[1672650262982,30.0,11.165,11.145,39.0]
[1672650262983,30.0,11.162,11.145,39.0]
[1672650263205,67.31,11.161,11.146,30.0]
[1672650263412,67.31,11.161,11.147,39.28]
[1672650263621,30.0,11.16,11.147,39.28]
[1672650263822,67.32,11.159,11.149,30.0]
[1672650264247,30.0,11.158,11.148,113.4053]
[1672650264471,67.33,11.157,11.148,113.4053]
[1672650265089,7.92859842,11.156,11.143,38.82]
[1672650265307,30.0,11.154,11.138,30.0]
[1672650265507,30.0,11.154,11.14,30.0]
[1672650265508,67.36,11.153,11.14,30.0]
[1672650265729,67.36,11.153,11.141,152.9738]
[1672650265928,30.0,11.158,11.143,30.0]
[1672650265929,67.33,11.157,11.143,30.0]
[1672650266139,67.33,11.157,11.145,30.0]
[1672650266889,67.33,11.158,11.147,30.0]
[1672650267326,30.0,11.157,11.146,114.1438]
[1672650267643,67.34,11.156,11.147,114.1438]
[1672650268693,30.0,11.159,11.147,114.1438]
[1672650268694,30.0,11.157,11.147,114.1438]
[1672650268882,67.34,11.156,11.147,114.1438]
[1672650269304,30.0,11.157,11.147,114.1438]
[1672650269511,30.0,11.155,11.147,114.1438]
[1672650269728,67.35,11.154,11.147,114.1438]
[1672650270064,67.35,11.154,11.148,30.0]
[1672650270251,30.0,11.158,11.148,30.0]
[1672650270468,67.33,11.157,11.148,111.7651]
[1672650271733,30.0,11.158,11.148,111.7651]
[1672650271942,30.0,11.158,11.141,38.9]
[1672650271943,67.33,11.157,11.149,116.4582]
[1672650272143,75.25859842,11.157,11.139,38.91]
[1672650272355,208.23129172,11.145,11.141,116.4582]
[1672650272681,208.23129172,11.145,11.137,30.0]
[1672650272897,67.35,11.154,11.138,39.23]
[1672650273094,67.33,11.157,11.14,9.18]
[1672650273305,30.0,11.156,11.142,30.0]
[1672650273520,67.34,11.155,11.143,59.22]
[1672650273845,67.34,11.155,11.144,30.0]
[1672650274048,67.34,11.155,11.144,146.4582]
[1672650274674,67.33,11.157,11.144,146.4582]
[1672650274885,67.33,11.157,11.146,30.0]
[1672650275097,67.33,11.157,11.145,116.4582]
[1672650275098,30.0,11.156,11.145,116.4582]
[1672650275425,67.34,11.155,11.146,30.0]
[1672650275613,30.0,11.156,11.146,30.0]
[1672650275820,67.34,11.155,11.146,30.0]
[1672650276140,67.33,11.157,11.146,147.6357]
[1672650276357,67.33,11.158,11.148,30.0]
[1672650276556,30.0,11.158,11.148,117.6357]
[1672650276903,67.33,11.157,11.148,117.6357]
[1672650277093,67.32,11.159,11.149,30.0]
[1672650277299,67.32,11.159,11.149,147.6357]
[1672650278478,67.32,11.159,11.149,117.6357]
[1672650278689,30.0,11.158,11.149,117.6357]
[1672650279005,30.0,11.156,11.149,117.6357]
[1672650279422,67.34,11.155,11.149,117.6357]
[1672650279624,30.0,11.154,11.143,38.8]
[1672650279830,30.0,11.152,11.141,111.5637]
[1672650280044,67.37,11.151,11.141,111.5637]
[1672650280470,67.36,11.153,11.142,68.8]
[1672650280668,67.36,11.153,11.142,30.0]
[1672650280878,20.0,11.152,11.142,30.0]
[1672650281107,20.0,11.152,11.142,68.8]
[1672650281417,9.24,11.16,11.142,68.8]
[1672650281629,59.45248226,11.159,11.143,111.5637]
[1672650281948,30.0,11.157,11.145,30.0]
[1672650282143,87.34,11.156,11.145,30.0]
[1672650282469,30.0,11.155,11.143,150.3237]
[1672650282677,30.0,11.153,11.143,150.3237]
[1672650282901,20.0,11.152,11.143,150.3237]
[1672650283085,20.0,11.152,11.144,30.0]
[1672650283295,67.34,11.155,11.144,30.0]
[1672650283500,67.32,11.159,11.144,147.3078]
[1672650283820,67.32,11.159,11.146,30.0]
[1672650284036,30.0,11.158,11.147,38.74]
[1672650284246,30.0,11.158,11.147,156.0478]
[1672650284448,67.33,11.157,11.147,156.0478]
[1672650284658,30.0,11.156,11.143,38.8]
[1672650284873,87.34,11.155,11.143,38.8]
[1672650285085,30.0,11.154,11.142,68.8]
[1672650285293,20.0,11.153,11.142,68.8]
[1672650285713,20.0,11.153,11.142,38.8]
[1672650285926,30.0,11.152,11.142,38.8]
[1672650286345,87.36,11.153,11.143,30.0]
[1672650286658,20.0,11.153,11.142,38.8]
[1672650287403,30.0,11.151,11.141,109.1835]
[1672650287616,30.0,11.151,11.142,39.08]
[1672650288152,67.36,11.152,11.143,30.0]
[1672650288360,87.36,11.153,11.143,30.0]
[1672650288786,9.24,11.16,11.144,39.07]
[1672650289110,59.44960825,11.159,11.144,148.9321]
[1672650289294,30.0,11.157,11.141,39.08]
[1672650289510,30.0,11.155,11.141,109.8621]
[1672650289725,87.35,11.154,11.141,109.8621]
[1672650290045,30.0,11.153,11.142,30.0]
[1672650290254,20.0,11.152,11.142,69.08]
[1672650290464,30.0,11.151,11.142,39.08]
[1672650290657,67.36,11.152,11.142,39.08]
[1672650290867,30.0,11.153,11.141,109.8621]
[1672650291089,20.0,11.152,11.141,109.8621]
[1672650291303,45.9,11.15,11.141,0.0021]
[1672650291621,97.38,11.149,11.126,30.0]
[1672650291843,177.66450489,11.149,11.127,39.05]
[1672650292141,177.66450489,11.149,11.13,9.16]
[1672650292359,177.66450489,11.149,11.131,39.04]
[1672650292666,177.66450489,11.149,11.132,30.0]
[1672650292988,177.66450489,11.149,11.134,30.0]
[1672650293177,177.66450489,11.149,11.135,39.03]
[1672650293387,177.66450489,11.149,11.136,30.0]
[1672650293601,177.66450489,11.149,11.137,39.29]
[1672650294130,97.38,11.149,11.135,39.3]
[1672650294453,30.0,11.147,11.134,39.31]
[1672650294642,67.4,11.146,11.134,39.31]
[1672650294853,30.0,11.145,11.134,39.31]
[1672650295402,67.4,11.146,11.134,39.31]
[1672650295611,30.0,11.145,11.134,39.31]
[1672650295818,20.0,11.144,11.134,39.31]
[1672650296049,67.42,11.143,11.131,39.32]
[1672650296236,50.0,11.142,11.13,39.32]
[1672650296559,30.0,11.14,11.13,39.32]
[1672650297820,178.9496,11.141,11.13,39.32]
[1672650298134,178.9496,11.141,11.131,30.0]
[1672650298342,111.5196,11.141,11.132,39.62]
[1672650299584,111.5196,11.141,11.131,30.0]
[1672650299793,111.5196,11.141,11.132,39.61]
[1672650300860,67.4,11.146,11.133,30.0]
[1672650301069,67.4,11.146,11.132,39.61]
[1672650301070,7.91908003,11.146,11.134,46.31]
[1672650301284,67.4,11.145,11.132,156.1809]
[1672650301494,30.0,11.144,11.133,20.0]
[1672650301714,67.42,11.143,11.132,109.8709]
[1672650301927,30.0,11.142,11.133,44.95]
[1672650302232,30.0,11.14,11.132,109.8709]
[1672650302443,30.0,11.142,11.132,109.8709]
[1672650303295,67.43,11.141,11.132,109.8709]
[1672650303499,143.9439,11.143,11.133,30.0]
[1672650303710,20.0,11.142,11.133,30.0]
[1672650304136,20.0,11.142,11.132,109.8709]
[1672650304772,30.0,11.141,11.133,39.61]
[1672650304963,30.0,11.141,11.132,109.8709]
[1672650305174,50.0,11.142,11.133,39.61]
[1672650305612,50.0,11.142,11.132,109.8709]
[1672650306549,20.0,11.142,11.132,109.8709]
[1672650306755,263.86221038,11.159,11.133,208.03331734]
[1672650306980,59.46541692,11.158,11.14,9.1]
[1672650307168,30.0,11.157,11.141,39.5]
[1672650307379,67.34,11.156,11.141,39.5]
[1672650307589,114.0997,11.155,11.136,159.7001]
[1672650307811,67.35,11.154,11.136,159.7001]
[1672650308132,20.0,11.153,11.137,30.0]
[1672650308364,134.0997,11.153,11.138,41.26]
[1672650308557,134.0997,11.153,11.139,30.0]
[1672650308759,67.34,11.156,11.14,169.2801]
[1672650308954,67.34,11.156,11.141,50.0]
[1672650309167,30.0,11.155,11.143,30.0]
[1672650309376,67.35,11.154,11.144,46.29]
[1672650309590,67.34,11.156,11.145,30.0]
[1672650309805,114.0997,11.159,11.145,30.0]
[1672650309806,67.32,11.158,11.145,30.0]
[1672650310019,67.32,11.158,11.147,30.0]
[1672650310234,67.32,11.158,11.146,166.9001]
[1672650310434,67.32,11.158,11.146,118.8201]
[1672650311185,67.32,11.158,11.146,163.9101]
[1672650311499,30.0,11.157,11.146,163.9101]
[1672650311719,67.34,11.156,11.146,118.8201]
[1672650312325,30.0,11.157,11.146,118.8201]
[1672650312662,67.34,11.156,11.134,30.0]
[1672650312871,20.0,11.155,11.14,117.5798]
[1672650313061,97.35,11.154,11.141,30.0]
[1672650313392,20.0,11.153,11.141,39.72]
[1672650314126,30.0,11.152,11.141,39.72]
[1672650314861,132.6038,11.153,11.142,30.0]
[1672650315068,132.6038,11.153,11.143,39.05]
[1672650316008,30.0,11.152,11.141,41.7]
[1672650316846,97.36,11.152,11.141,41.7]
[1672650318229,162.6038,11.153,11.141,41.7]
[1672650318230,132.6038,11.153,11.142,30.0]
[1672650319808,30.0,11.151,11.141,71.7]
[1672650319996,30.0,11.151,11.141,41.7]
[1672650320329,185.8275,11.152,11.141,41.7]
[1672650320522,185.8275,11.152,11.142,30.0]
[1672650321901,185.8275,11.152,11.141,41.7]
[1672650322514,118.4675,11.152,11.142,30.0]
[1672650324407,67.34,11.155,11.142,30.0]
[1672650324617,67.33,11.157,11.143,87.42]
[1672650324828,30.0,11.157,11.144,30.0]
[1672650325050,67.34,11.156,11.144,30.0]
[1672650325472,67.34,11.156,11.144,145.9009]
[1672650326312,30.0,11.155,11.144,115.9009]
[1672650326633,67.35,11.154,11.144,115.9009]
[1672650327381,30.0,11.153,11.144,115.9009]
[1672650328203,67.35,11.154,11.144,115.9009]
[1672650328416,30.0,11.155,11.144,115.9009]
[1672650328632,30.0,11.155,11.144,183.3109]
[1672650329265,30.0,11.153,11.136,62.74]
[1672650329458,87.36,11.152,11.137,30.0]
[1672650329791,30.0,11.151,11.138,61.16]
[1672650330004,30.0,11.149,11.138,171.0489]
[1672650330203,177.5741,11.15,11.138,171.0489]
[1672650330529,110.2041,11.15,11.138,171.0489]
[1672650330748,110.2041,11.15,11.139,30.0]
[1672650330926,110.2041,11.15,11.14,70.36]
[1672650331350,110.2041,11.15,11.141,30.0]
[1672650331566,110.2041,11.15,11.142,63.86]
[1672650331787,110.2041,11.15,11.141,96.09]
[1672650332209,30.0,11.155,11.141,96.09]
[1672650332423,67.35,11.154,11.143,30.0]
[1672650332616,67.35,11.154,11.143,97.41]
[1672650333152,30.0,11.156,11.143,97.41]
[1672650333360,67.33,11.157,11.144,110.9829]
[1672650333575,30.0,11.156,11.144,110.9829]
[1672650334103,30.0,11.154,11.145,65.07]
[1672650334327,30.0,11.154,11.144,110.9829]
[1672650335153,97.34,11.156,11.144,110.9829]
[1672650335345,67.34,11.156,11.144,110.9829]
[1672650335762,30.0,11.156,11.144,110.9829]
[1672650336292,97.33,11.157,11.145,30.0]
[1672650336509,97.33,11.157,11.145,200.9461]
[1672650336712,30.0,11.156,11.145,116.7561]
[1672650337036,30.0,11.154,11.145,116.7561]
[1672650337245,67.34,11.155,11.145,116.7561]
[1672650337446,97.33,11.157,11.146,81.64]
[1672650337659,30.0,11.157,11.146,81.64]
[1672650337867,30.0,11.157,11.146,51.64]
[1672650338085,97.33,11.157,11.146,51.64]
[1672650338299,67.33,11.157,11.146,51.64]
[1672650338741,30.0,11.157,11.146,51.64]
[1672650339566,67.34,11.156,11.145,116.7561]
[1672650339771,30.0,11.155,11.145,116.7561]
[1672650341471,30.0,11.155,11.146,45.97]
[1672650342080,97.33,11.157,11.146,45.97]
[1672650342512,67.33,11.157,11.147,30.0]
[1672650342751,67.33,11.157,11.146,45.97]
[1672650342925,30.0,11.156,11.146,45.97]
[1672650343253,213.3643,11.158,11.146,45.97]
[1672650343451,30.0,11.157,11.146,155.5592]
[1672650344186,30.0,11.157,11.146,109.5892]
[1672650344406,30.0,11.155,11.146,109.5892]
[1672650345568,67.34,11.156,11.146,109.5892]
[1672650346618,30.0,11.155,11.146,109.5892]
[1672650347236,133.28816317,11.157,11.146,109.5892]
[1672650347448,30.0,11.156,11.146,109.5892]
[1672650347657,95.95816317,11.156,11.146,109.5892]
[1672650348815,116.0343,11.158,11.146,109.5892]
[1672650349028,116.0343,11.158,11.147,38.89]
[1672650349674,30.0,11.157,11.147,38.89]
[1672650350100,65.95816317,11.155,11.146,109.5892]
[1672650350848,67.34,11.156,11.147,38.88]
[1672650351156,30.0,11.156,11.147,38.88]
[1672650351349,30.0,11.156,11.146,109.5892]
[1672650351555,30.0,11.154,11.146,109.5892]
[1672650351771,95.95816317,11.154,11.146,109.5892]
[1672650352418,65.95816317,11.154,11.146,109.5892]
[1672650352942,30.0,11.153,11.146,109.5892]
[1672650353139,65.95816317,11.154,11.146,109.5892]
[1672650354708,65.95816317,11.157,11.146,109.5892]
[1672650354917,183.3543,11.158,11.148,30.0]
[1672650355127,116.0343,11.158,11.148,30.0]
[1672650355342,30.0,11.157,11.148,30.0]
[1672650355556,30.0,11.157,11.147,110.6013]
[1672650355768,65.95816317,11.154,11.147,110.6013]
[1672650355977,116.0343,11.158,11.148,30.0]
[1672650356192,116.0343,11.158,11.149,38.89]
[1672650356401,65.95816317,11.159,11.149,38.89]
[1672650356602,30.0,11.159,11.147,110.6013]
[1672650357022,67.32,11.158,11.147,110.6013]
[1672650357237,118.122,11.159,11.148,68.73]
[1672650357660,30.0,11.158,11.148,38.73]
[1672650357874,97.32,11.158,11.148,38.73]
[1672650358091,97.32,11.158,11.147,110.6013]
[1672650358617,118.122,11.159,11.148,38.89]
[1672650358811,118.122,11.159,11.148,68.89]
[1672650359143,118.122,11.159,11.148,38.89]
[1672650359551,118.122,11.159,11.149,30.0]
[1672650359761,118.122,11.159,11.15,45.65]
[1672650361018,118.122,11.159,11.149,84.24]
[1672650361228,118.122,11.159,11.149,30.0]
[1672650361540,118.122,11.159,11.148,109.9411]
[1672650361751,185.442,11.159,11.148,109.9411]
[1672650362177,118.122,11.159,11.149,30.0]
[1672650362376,118.122,11.159,11.149,88.94]
[1672650363018,67.32,11.158,11.149,30.0]
[1672650363217,118.122,11.159,11.149,30.0]
[1672650363435,118.122,11.159,11.151,30.0]
[1672650363642,65.95816317,11.161,11.151,30.0]
[1672650363854,65.95816317,11.161,11.15,60.76]
[1672650364061,67.31,11.16,11.149,65.19]
[1672650364279,65.95816317,11.161,11.15,9.1]
[1672650364492,74.40719778,11.161,11.151,85.34]
[1672650364733,74.40719778,11.161,11.152,30.0]
[1672650364940,71.38923103,11.164,11.153,120.91297]
[1672650365343,119.226,11.167,11.154,30.0]
[1672650365568,119.226,11.167,11.16,9.16]
[1672650365788,119.226,11.167,11.155,180.7302]
[1672650366389,119.226,11.167,11.156,30.0]
[1672650366605,119.226,11.167,11.157,67.33]
[1672650366836,186.16659121,11.171,11.158,30.0]
[1672650367029,118.91659121,11.171,11.16,4.67522849]
[1672650367242,118.91659121,11.171,11.161,67.31]
[1672650367455,118.91659121,11.171,11.163,30.0]
[1672650367662,118.91659121,11.171,11.161,62.82500276]
[1672650367869,118.91659121,11.171,11.161,30.0]
[1672650368082,67.25,11.17,11.161,30.0]
[1672650368286,118.91659121,11.171,11.161,30.0]
[1672650368509,118.91659121,11.171,11.163,30.0]
[1672650368913,118.91659121,11.171,11.164,20.0]
[1672650369460,118.91659121,11.171,11.163,20.0]
[1672650369777,118.91659121,11.171,11.162,20.0]
[1672650369989,118.91659121,11.171,11.162,41.47]
[1672650370409,118.91659121,11.171,11.163,25.51643375]
[1672650370598,118.91659121,11.171,11.164,20.0]
[1672650371443,118.91659121,11.171,11.161,141.9092]
[1672650371660,118.91659121,11.171,11.161,117.0692]
[1672650372702,118.91659121,11.171,11.163,30.0]
[1672650372918,118.91659121,11.171,11.164,43.33]
[1672650373337,118.91659121,11.171,11.165,45.80730786]
[1672650373552,118.91659121,11.171,11.167,30.0]
[1672650373765,118.91659121,11.171,11.168,58.05]
[1672650374174,106.41659121,11.171,11.169,30.0]
[1672650374697,106.41659121,11.171,11.168,38.05]
[1672650375122,106.41659121,11.171,11.166,50.73]
[1672650375347,106.41659121,11.171,11.167,30.0]
[1672650376091,0.00659121,11.171,11.167,30.0]
[1672650376305,0.00659121,11.171,11.167,138.9504]
[1672650376726,0.00659121,11.171,11.169,30.0]
[1672650376920,67.19,11.181,11.169,30.0]
[1672650377129,67.19,11.181,11.168,64.42]
[1672650377130,67.17,11.183,11.168,64.42]
[1672650377340,67.17,11.183,11.168,108.9504]
[1672650377669,30.0,11.182,11.168,108.9504]
[1672650377985,67.19,11.181,11.168,108.9504]
[1672650378194,9.18,11.18,11.168,108.9504]
[1672650378416,97.2,11.179,11.168,108.9504]
[1672650378824,30.0,11.178,11.168,108.9504]
[1672650379035,30.0,11.182,11.168,108.9504]
[1672650379244,20.0,11.194,11.172,30.0]
[1672650379448,0.0193611,11.188,11.178,221.74512536]
[1672650379666,67.15,11.187,11.18,66.3885174]
[1672650379869,67.14,11.189,11.187,141.83569231]
[1672650380097,67.08,11.199,11.187,141.83569231]
[1672650381052,30.0,11.198,11.188,30.0]
[1672650381346,30.0,11.198,11.187,141.83569231]
[1672650381347,67.09,11.197,11.187,141.83569231]
[1672650381542,67.09,11.197,11.176,9.23]
[1672650381543,20.0,11.196,11.167,159.20911526]
[1672650381754,9.18,11.18,11.172,154.16543281]
[1672650381980,67.2,11.179,11.173,0.29478332]
[1672650382189,67.2,11.179,11.174,156.02257135]
[1672650382606,67.2,11.179,11.171,153.11167318]
[1672650383012,9.18,11.18,11.174,30.0]
[1672650383227,9.18,11.18,11.175,152.95211374]
[1672650383438,67.14,11.189,11.177,151.91223955]
[1672650383754,83.68196455,11.188,11.177,151.91223955]
[1672650383962,67.15,11.187,11.178,185.35660796]
[1672650384173,20.0,11.186,11.178,185.35660796]
[1672650384384,67.16,11.185,11.178,185.35660796]
[1672650384588,20.0,11.184,11.175,152.95211374]
[1672650384804,20.0,11.184,11.171,153.11167318]
[1672650384805,67.17,11.183,11.171,153.11167318]
[1672650385027,9.18,11.18,11.172,30.0]
[1672650385225,67.2,11.179,11.175,152.95211374]
[1672650385765,67.19,11.181,11.175,152.95211374]
[1672650386167,67.19,11.181,11.176,30.0]
[1672650386379,67.17,11.183,11.177,151.91223955]
[1672650386587,20.0,11.182,11.175,152.95211374]
[1672650386802,20.0,11.182,11.171,30.0]
[1672650386803,67.19,11.181,11.173,158.28276811]
[1672650387008,45.91,11.18,11.175,152.95211374]
[1672650387216,30.0,11.178,11.17,153.45761862]
[1672650387423,67.21,11.177,11.17,153.75248112]
[1672650387656,67.21,11.177,11.172,154.16543281]
[1672650387972,67.2,11.179,11.173,0.29478332]
[1672650388175,67.2,11.179,11.174,156.02257135]
[1672650388508,67.2,11.179,11.171,153.11167318]
[1672650388810,67.2,11.179,11.173,158.28276811]
[1672650389003,67.2,11.179,11.176,30.0]
[1672650389212,67.19,11.181,11.176,30.0]
[1672650389421,67.19,11.181,11.173,158.28276811]
[1672650389657,30.0,11.179,11.175,152.95211374]
[1672650389852,30.0,11.179,11.165,30.0]
[1672650389853,67.2,11.178,11.165,153.8346279]
[1672650390052,67.2,11.178,11.17,159.24194372]
[1672650390053,20.0,11.177,11.17,159.24194372]
[1672650390265,97.22,11.176,11.164,150.71621837]
[1672650390480,20.0,11.175,11.167,186.35040966]
[1672650390795,20.0,11.175,11.168,0.29491531]
[1672650391021,67.2,11.179,11.168,0.2948889]
[1672650391226,67.2,11.179,11.168,156.8386757]
[1672650391435,67.2,11.179,11.169,30.0]
[1672650391752,67.2,11.179,11.17,0.2948625]
[1672650391951,9.19,11.18,11.169,297.98860484]
[1672650392477,9.19,11.18,11.171,30.0]
[1672650393552,9.19,11.18,11.172,67.24]
[1672650393749,9.19,11.18,11.173,30.0]
[1672650394065,9.19,11.18,11.172,67.24]
[1672650394268,9.19,11.18,11.17,270.40458122]
[1672650394480,9.19,11.18,11.171,30.0]
[1672650397529,9.19,11.18,11.173,30.0]
[1672650397951,67.17,11.183,11.173,30.0]
[1672650398161,67.14,11.188,11.175,30.0]
[1672650398378,67.14,11.189,11.177,30.0]
[1672650399110,67.14,11.189,11.178,117.0582]
[1672650399322,67.14,11.189,11.179,30.0]
[1672650399641,67.14,11.189,11.179,147.9087]
[1672650401619,67.14,11.189,11.182,30.0]
[1672650401834,9.19,11.19,11.182,30.0]
[1672650402167,67.12,11.192,11.182,30.0]
[1672650402354,108.863,11.196,11.182,30.0]
[1672650402564,87.1,11.195,11.182,95.35050332]
[1672650403615,87.1,11.195,11.185,30.0]
[1672650404792,20.0,11.195,11.185,30.0]
[1672650404987,20.0,11.196,11.185,30.0]
[1672650405315,67.1,11.195,11.185,25.52525257]
[1672650405521,20.0,11.194,11.185,25.52525257]
[1672650405741,67.11,11.193,11.185,25.52525257]
[1672650406052,20.0,11.192,11.185,25.52525257]
[1672650406239,20.0,11.192,11.185,21.05050514]
[1672650406453,20.0,11.195,11.185,21.05050514]
[1672650406683,67.11,11.194,11.185,21.05050514]
[1672650406873,20.0,11.193,11.184,30.0]
[1672650407085,67.12,11.192,11.184,30.0]
[1672650407413,20.0,11.191,11.183,95.35050332]
[1672650407623,67.13,11.19,11.184,65.35050332]
[1672650408026,20.0,11.191,11.185,25.52525257]
[1672650408241,20.0,11.194,11.185,25.52525257]
[1672650408462,67.11,11.193,11.185,25.52525257]
[1672650408783,20.0,11.192,11.185,25.52525257]
[1672650409189,20.0,11.193,11.185,25.52525257]
[1672650409400,20.0,11.196,11.185,25.52525257]
[1672650409625,67.1,11.195,11.185,25.52525257]
[1672650409937,20.0,11.194,11.184,65.35050332]
[1672650410138,30.0,11.192,11.184,65.35050332]
[1672650410334,6.82,11.19,11.181,113.9574]
[1672650410556,97.14,11.189,11.181,113.9574]
[1672650411504,67.14,11.189,11.181,113.9574]
[1672650411711,67.14,11.189,11.181,179.30790332]
[1672650412246,67.14,11.189,11.181,113.9574]
[1672650414571,67.14,11.189,11.182,30.0]
[1672650415291,73.95,11.19,11.182,30.0]
[1672650415505,90.4345,11.191,11.182,30.0]
[1672650415719,23.3045,11.191,11.182,30.0]
[1672650416037,67.13,11.19,11.182,30.0]
[1672650416271,90.4345,11.191,11.182,30.0]
[1672650416562,30.0,11.19,11.181,137.2239]
[1672650416781,36.83,11.19,11.181,137.2239]
[1672650416969,67.14,11.189,11.181,137.2239]
[1672650417179,23.3045,11.191,11.182,30.0]
[1672650419087,67.13,11.19,11.182,30.0]
[1672650419301,90.4345,11.191,11.182,30.0]
[1672650419727,98.36475012,11.191,11.181,191.9557]
[1672650420041,98.36475012,11.191,11.182,30.0]
[1672650420653,98.36475012,11.191,11.181,191.9557]
[1672650420864,6.83,11.19,11.181,161.9557]
[1672650421090,67.14,11.189,11.182,30.0]
[1672650422343,7.29,11.19,11.182,30.0]
[1672650422767,67.14,11.189,11.182,30.0]
[1672650423406,74.42,11.19,11.182,30.0]
[1672650426452,23.3045,11.191,11.182,30.0]
[1672650427166,90.4345,11.191,11.182,30.0]
[1672650430140,23.3045,11.191,11.182,30.0]
[1672650432967,23.3045,11.191,11.181,161.9557]
[1672650433709,23.3045,11.191,11.182,30.0]
[1672650433921,67.13,11.19,11.182,30.0]
[1672650434529,20.0,11.203,11.182,30.0]
[1672650434858,42.47181247,11.198,11.185,65.35050332]
[1672650435059,67.09,11.197,11.186,160.4412]
[1672650435260,30.0,11.196,11.186,160.4412]